bitfinex-derivatives/quotes_ETHF0:USTF0_20250621
["timestamp","ask_amount","ask_price","bid_price","bid_amount"]
[1750518205171,3.2078,2425.2,2424.8,35.64716484]
[1750518205373,0.82457,2425.1,2425.0,4.03236]
[1750518205565,0.8246,2425.0,2424.9,0.82459]
[1750518206171,0.82457,2425.1,2425.0,0.82457]
[1750518206582,0.82457,2425.1,2425.0,4.03237]
[1750518207290,0.82457,2425.1,2425.0,0.82457]
[1750518207787,0.82454,2425.2,2425.1,0.82453]
[1750518208384,0.82454,2425.2,2425.1,0.82454]
[1750518210581,0.82451,2425.3,2425.2,0.8245]
[1750518210783,0.82451,2425.2,2425.1,26.38852]
[1750518211185,0.82451,2425.2,2425.1,26.38855]
[1750518211377,0.82455,2425.1,2425.0,6.48596484]
[1750518211582,3.45106,2425.4,2424.9,33.012]
[1750518211783,0.82454,2425.2,2425.1,0.82453]
[1750518213279,0.82452,2425.3,2425.2,0.82449]
[1750518213488,0.82453,2425.2,2425.1,0.82453]
[1750518214388,10.26917,2425.2,2424.8,3.28035627]
[1750518214689,3.48471,2425.1,2424.7,3.28035627]
[1750518214991,0.82466,2424.8,2424.7,4.10503627]
[1750518215287,0.82466,2424.8,2424.7,4.03248]
[1750518215479,0.8246,2425.0,2424.9,0.82462]
[1750518215686,1.5216,2425.3,2425.2,0.82451]
[1750518215887,0.82451,2425.2,2425.0,0.7067]
[1750518216088,0.82451,2425.2,2425.0,26.2977]
[1750518216384,1.5216,2425.3,2425.2,0.82451]
[1750518216791,0.6971,2425.3,2425.2,0.82451]
[1750518217184,0.06847599,2425.4,2425.3,0.82448]
[1750518217495,0.06847599,2425.4,2425.3,7.56848]
[1750518218387,0.82437,2425.7,2425.3,35.5338]
[1750518218690,0.82434,2425.7,2425.6,0.82436]
[1750518219086,0.82434,2425.7,2425.5,0.8244]
[1750518219486,4.72923,2425.8,2425.6,0.82438]
[1750518219686,4.72923,2425.8,2425.7,6.744]
[1750518220198,3.9049,2425.8,2425.7,6.744]
[1750518220381,4.72921,2425.8,2425.7,6.744]
[1750518220587,3.9049,2425.8,2425.7,6.743]
[1750518220997,3.9049,2425.8,2425.3,3.28035627]
[1750518221295,0.82442,2425.5,2425.4,33.15043]
[1750518221488,0.8244,2425.6,2425.5,0.82441]
[1750518222995,0.82441,2425.5,2425.4,33.15043]
[1750518223193,0.8244,2425.6,2425.5,0.82441]
[1750518223402,0.8244,2425.6,2425.5,7.56741]
[1750518223896,2.23187,2425.7,2425.6,0.82438]
[1750518224389,2.23187,2425.7,2425.5,7.56739]
[1750518224689,0.82438,2425.6,2425.5,7.56739]
[1750518224992,1.4075,2425.7,2425.6,0.82438]
[1750518225397,2.23184,2425.7,2425.6,0.82438]
[1750518225995,0.6971,2425.8,2425.7,0.82434]
[1750518227196,1.52141,2425.8,2425.7,6.743]
[1750518227397,1.52141,2425.8,2425.5,1.15493993]
[1750518227398,0.82438,2425.6,2425.5,1.15493993]
[1750518227592,0.82438,2425.6,2425.5,33.43693993]
[1750518227794,0.82441,2425.5,2425.4,0.82443]
[1750518227999,3.2078,2425.5,2425.1,3.28035627]
[1750518228202,0.82455,2425.1,2425.0,14.05573627]
[1750518228504,0.82455,2425.1,2425.0,3.2078]
[1750518231397,0.82455,2425.1,2425.0,4.03238]
[1750518231698,4.75795,2425.4,2425.1,0.82453]
[1750518231699,0.82452,2425.2,2425.1,0.82453]
[1750518232102,0.82455,2425.1,2425.0,4.03236]
[1750518232595,0.8245,2425.3,2425.2,0.82451]
[1750518232799,0.82448,2425.3,2425.2,0.82451]
[1750518232994,0.82448,2425.3,2425.1,1.47222]
[1750518233204,3.52126,2425.4,2425.1,0.6477]
[1750518233400,3.52125,2425.4,2425.3,0.82448]
[1750518233601,0.06847599,2425.7,2425.4,0.82443]
[1750518233803,0.82441,2425.5,2425.4,0.82443]
[1750518234100,0.89284599,2425.7,2425.3,9.9508]
[1750518234300,0.89284599,2425.7,2425.5,0.82438]
[1750518234500,0.89284599,2425.7,2425.6,0.82438]
[1750518234703,0.89284599,2425.7,2425.5,1.50749]
[1750518234898,0.82438,2425.6,2425.5,1.50749]
[1750518235103,0.82438,2425.6,2425.5,0.6831]
[1750518238205,0.06847599,2425.7,2425.6,0.82438]
[1750518238500,0.82425,2426.0,2425.9,0.82426]
[1750518238705,4.5407,2426.1,2425.9,6.743]
[1750518238908,0.82427,2426.0,2425.9,7.56727]
[1750518239400,0.82427,2426.0,2425.9,6.743]
[1750518239809,0.82428,2425.9,2425.8,26.35029]
[1750518240005,0.82428,2425.9,2425.8,33.09329]
[1750518240403,2.15715,2426.0,2425.9,0.82428]
[1750518240606,3.2078,2426.1,2426.0,0.82424]
[1750518240607,4.03202,2426.1,2426.0,0.82424]
[1750518240807,4.03202,2426.1,2425.9,6.743]
[1750518240808,3.2078,2426.1,2425.9,6.743]
[1750518241007,2.21534,2426.0,2425.9,6.743]
[1750518241404,0.82431,2425.8,2425.7,0.82432]
[1750518241607,1.523,2425.9,2425.8,0.82431]
[1750518241908,0.82431,2425.8,2425.7,33.08532]
[1750518242804,0.82431,2425.8,2425.7,33.40908515]
[1750518243108,1.523,2425.9,2425.8,0.82431]
[1750518243512,0.82426,2426.0,2425.9,0.82428]
[1750518243809,0.82431,2425.8,2425.7,1.47322]
[1750518244003,0.82431,2425.8,2425.7,33.72722]
[1750518244807,0.82434,2425.7,2425.6,4.68226]
[1750518245007,0.82434,2425.7,2425.6,36.93126]
[1750518246013,0.82434,2425.7,2425.6,4.68226]
[1750518246208,0.82433,2425.8,2425.7,0.82433]
[1750518246716,0.82434,2425.7,2425.6,33.72345]
[1750518247199,0.82434,2425.7,2425.6,0.6501]
[1750518247400,0.82434,2425.7,2425.6,6.693]
[1750518247906,2.17624,2425.7,2425.6,6.693]
[1750518248212,0.82441,2425.5,2425.4,29.60578627]
[1750518248413,0.8244,2425.6,2425.5,0.82441]
[1750518249407,1.3519,2425.7,2425.5,0.82441]
[1750518249610,2.17627,2425.7,2425.6,0.82438]
[1750518249813,2.17627,2425.7,2425.4,35.47435627]
[1750518250108,2.17627,2425.7,2425.6,0.82438]
[1750518250504,2.17627,2425.7,2425.4,35.47435627]
[1750518250505,0.82438,2425.6,2425.5,0.82439]
[1750518250904,1.3519,2425.7,2425.6,0.82438]
[1750518252015,2.17624,2425.7,2425.6,0.82438]
[1750518252315,0.82433,2425.8,2425.7,0.82433]
[1750518252614,2.21243,2425.8,2425.7,0.82433]
[1750518253013,0.82436,2425.7,2425.6,0.82436]
[1750518253709,0.82433,2425.8,2425.7,0.82433]
[1750518254109,2.14993,2425.8,2425.7,0.82433]
[1750518254510,0.82435,2425.7,2425.6,0.82435]
[1750518255917,2.14993,2425.8,2425.7,0.82434]
[1750518256216,0.82436,2425.7,2425.6,0.82435]
[1750518256417,0.82438,2425.6,2425.5,0.82439]
[1750518256718,0.82438,2425.6,2425.5,7.51739]
[1750518258016,1.3256,2425.8,2425.5,7.51739]
[1750518258017,0.82437,2425.7,2425.6,0.82437]
[1750518259119,2.14993,2425.8,2425.7,0.82434]
[1750518260214,0.82435,2425.7,2425.6,0.82435]
[1750518260916,0.89282599,2425.7,2425.6,0.82435]
[1750518261123,0.06847599,2425.7,2425.6,0.82435]
[1750518261313,0.06847599,2425.7,2425.6,4.10470627]
[1750518261517,0.06847599,2425.7,2425.6,4.79410627]
[1750518261718,0.82438,2425.6,2425.5,14.00554627]
[1750518262022,0.89283599,2425.7,2425.6,0.82438]
[1750518262328,0.06847599,2425.7,2425.6,0.82438]
[1750518262525,0.06847599,2425.7,2425.6,4.10473627]
[1750518263422,0.89281599,2425.7,2425.6,4.10473627]
[1750518263627,0.89281599,2425.7,2425.6,9.97235627]
[1750518263822,0.89281599,2425.7,2425.6,10.79673627]
[1750518265219,0.06847599,2425.7,2425.6,10.79673627]
[1750518265627,0.89281599,2425.7,2425.6,4.10473627]
[1750518265829,0.89281599,2425.7,2425.6,36.24473627]
[1750518266923,0.06847599,2425.7,2425.6,36.24473627]
[1750518267227,0.06847599,2425.7,2425.6,36.24027916]
[1750518267430,0.89281599,2425.7,2425.6,36.24027916]
[1750518267630,0.89281599,2425.7,2425.6,36.24080317]
[1750518268129,0.06847599,2425.7,2425.6,36.24091001]
[1750518268332,0.06847599,2425.7,2425.6,32.96438]
[1750518268629,0.06847599,2425.7,2425.6,35.54569222]
[1750518269026,0.89281599,2425.7,2425.6,0.82438]
[1750518269428,0.89281599,2425.7,2425.6,4.10090082]
[1750518269617,0.89281599,2425.7,2425.6,3.27652082]
[1750518271026,0.82438,2425.6,2425.5,6.48432082]
[1750518271227,2.22348,2425.6,2425.5,6.48432082]
[1750518271422,2.22348,2425.6,2425.5,3.2078]
[1750518271827,0.82441,2425.5,2425.4,3.27652082]
[1750518272029,2.90481,2425.5,2425.4,3.27652082]
[1750518272530,0.82444,2425.4,2425.3,3.27652082]
[1750518272832,0.82448,2425.3,2425.2,3.27652082]
[1750518273326,0.82455,2425.1,2425.0,3.27652082]
[1750518273531,0.82452,2425.2,2425.1,0.82453]
[1750518273727,0.6461,2425.4,2425.1,2.58131222]
[1750518273927,0.82451,2425.2,2425.1,9.91931222]
[1750518274329,0.82451,2425.2,2425.1,10.74386222]
[1750518275034,0.8245,2425.3,2425.2,0.82451]
[1750518275628,0.8245,2425.3,2425.1,9.91931222]
[1750518275629,0.82451,2425.2,2425.1,9.91931222]
[1750518275936,0.82451,2425.2,2425.1,32.788]
[1750518276832,0.82451,2425.2,2425.1,6.693]
[1750518277034,2.06126,2425.3,2424.8,3.95032082]
[1750518277338,0.82462,2424.9,2424.8,3.95032082]
[1750518277532,0.82462,2424.9,2424.8,36.09332082]
[1750518277729,0.82462,2424.9,2424.8,36.09432082]
[1750518277931,0.82462,2424.9,2424.8,10.61832082]
[1750518278332,0.82462,2424.9,2424.8,11.44297082]
[1750518279441,0.82462,2424.9,2424.8,10.61832082]
[1750518279840,0.82462,2424.9,2424.8,7.3418]
[1750518280043,0.82462,2424.9,2424.8,10.61832082]
[1750518280740,0.82462,2424.9,2424.8,7.3418]
[1750518280935,0.82462,2424.9,2424.8,8.16645]
[1750518282248,0.82462,2424.9,2424.8,7.3418]
[1750518282543,0.82462,2424.9,2424.7,32.75998082]
[1750518282544,0.82465,2424.8,2424.7,9.94452082]
[1750518282744,0.82465,2424.8,2424.7,6.668]
[1750518283140,0.82468,2424.7,2424.6,36.22022082]
[1750518283339,0.82468,2424.7,2424.6,9.94452082]
[1750518284141,0.82468,2424.7,2424.6,10.76924082]
[1750518284340,0.82468,2424.7,2424.6,7.49372]
[1750518285049,0.82468,2424.7,2424.6,6.669]
[1750518285247,0.82468,2424.7,2424.6,7.49372]
[1750518285756,0.82468,2424.7,2424.6,6.669]
[1750518286759,5.26944,2424.8,2424.4,3.2078]
[1750518286959,0.82475,2424.5,2424.4,35.3288]
[1750518287854,2.91223,2424.6,2424.5,0.82475]
[1750518288355,0.82472,2424.6,2424.5,0.82475]
[1750518289662,0.82475,2424.5,2424.4,38.73487222]
[1750518290358,0.82475,2424.5,2424.4,38.73490222]
[1750518290556,0.82475,2424.5,2424.4,36.15359]
[1750518290752,2.45152599,2424.8,2424.4,37.91011222]
[1750518290953,1.416,2425.6,2425.5,0.82441]
[1750518291253,0.82432,2425.8,2425.6,0.82435]
[1750518291458,0.82432,2425.8,2425.2,2.06125]
[1750518291459,2.06091,2425.7,2425.2,3.26699071]
[1750518291651,0.82448,2425.3,2425.2,0.6598]
[1750518291851,7.58131222,2425.3,2424.9,9.93599071]
[1750518292053,0.82458,2425.0,2424.9,6.669]
[1750518293158,0.82458,2425.0,2424.9,7.49361]
[1750518294259,0.82458,2425.0,2424.9,6.669]
[1750518294660,0.82461,2424.9,2424.8,0.6598]
[1750518295550,0.82461,2424.9,2424.8,1.48445]
[1750518296355,0.82461,2424.9,2424.8,0.6598]
[1750518298561,0.82461,2424.9,2424.8,1.48445]
[1750518298957,0.82461,2424.9,2424.8,0.6598]
[1750518300163,0.82465,2424.8,2424.7,13.96847071]
[1750518300457,0.82465,2424.8,2424.7,3.26699071]
[1750518300657,0.82468,2424.7,2424.6,7.348]
[1750518300865,0.82467,2424.8,2424.7,0.82467]
[1750518301058,0.82468,2424.7,2424.6,8.1727]
[1750518301458,0.89315599,2424.7,2424.6,8.1727]
[1750518302159,0.89315599,2424.7,2424.6,7.348]
[1750518302760,0.89315599,2424.7,2424.6,8.17272]
[1750518303066,0.89315599,2424.7,2424.6,7.348]
[1750518303365,0.89315599,2424.7,2424.6,8.17272]
[1750518303769,0.89315599,2424.7,2424.6,7.348]
[1750518304069,3.2078,2425.7,2424.7,2.06171]
[1750518304264,0.82447,2425.4,2425.3,3.2078]
[1750518304864,0.82447,2425.4,2425.3,4.03228]
[1750518305460,0.82447,2425.4,2425.3,3.2078]
[1750518305866,0.82447,2425.4,2425.3,4.03228]
[1750518306058,0.82447,2425.4,2425.3,3.2078]
[1750518307262,0.82447,2425.4,2425.3,4.03228]
[1750518310567,0.82447,2425.4,2425.3,3.2078]
[1750518312462,0.82447,2425.4,2425.3,4.03228]
[1750518313164,0.82447,2425.4,2425.3,3.2078]
[1750518316771,0.82455,2425.1,2425.0,13.85089757]
[1750518316963,0.82455,2425.1,2425.0,10.5772]
[1750518317167,0.82455,2425.1,2425.0,3.2078]
[1750518317775,2.18275,2425.1,2425.0,3.2078]
[1750518326587,0.82465,2424.8,2424.7,7.17299757]
[1750518326879,0.82465,2424.8,2424.7,3.8993]
[1750518327477,2.11435,2424.8,2424.7,3.8993]
[1750518327676,2.11435,2424.8,2424.7,3.2078]
[1750518329481,0.689,2424.9,2424.7,3.2078]
[1750518329675,5.26851,2425.9,2424.9,2.06155]
[1750518329980,0.82442,2425.5,2425.4,3.2078]
[1750518330169,0.82442,2425.5,2425.4,4.5666]
[1750518331179,3.40573222,2425.5,2425.4,3.2078]
[1750518331482,0.82451,2425.2,2425.1,0.6565]
[1750518331781,0.82458,2425.0,2424.9,7.339]
[1750518332178,0.82458,2425.0,2424.9,1.49662]
[1750518332481,0.82458,2425.0,2424.9,0.672]
[1750518333580,0.82458,2425.0,2424.9,1.49662]
[1750518333879,0.82458,2425.0,2424.9,0.672]
[1750518335382,0.82458,2425.0,2424.9,1.49662]
[1750518335980,0.82458,2425.0,2424.9,0.672]
[1750518336477,0.82458,2425.0,2424.9,1.49662]
[1750518336679,0.82458,2425.0,2424.9,0.82462]
[1750518336883,0.82462,2424.9,2424.8,4.03245]
[1750518337383,0.8246,2425.0,2424.9,0.82461]
[1750518337569,4.71086821,2425.5,2424.9,3.27021222]
[1750518337570,0.06847599,2425.5,2424.9,3.27021222]
[1750518337878,3.2078,2426.3,2425.4,5.78911222]
[1750518338082,0.82424,2426.0,2425.9,3.2078]
[1750518338284,3.2078,2426.3,2425.9,4.03207]
[1750518338285,0.82422,2426.1,2425.9,4.03207]
[1750518339081,0.82424,2426.1,2425.9,4.03207]
[1750518339583,0.82424,2426.0,2425.9,4.03207]
[1750518339787,0.82423,2426.1,2425.9,4.35451215]
[1750518340279,0.82424,2426.0,2425.9,4.35451215]
[1750518340585,0.82424,2426.0,2425.9,11.01851215]
[1750518340787,0.82424,2426.0,2425.9,10.19425215]
[1750518341083,0.82424,2426.0,2425.9,11.01853215]
[1750518341884,0.82424,2426.0,2425.9,10.19425215]
[1750518342080,0.82423,2426.1,2425.9,11.01853215]
[1750518342282,0.8242,2426.2,2425.9,10.19325215]
[1750518342484,0.82421,2426.1,2425.9,11.01750215]
[1750518342681,0.82421,2426.1,2426.0,0.82424]
[1750518342880,0.8242,2426.2,2426.0,0.82424]
[1750518343081,2.06019,2426.5,2426.0,0.82424]
[1750518343275,0.82421,2426.1,2426.0,0.82424]
[1750518343584,3.26006,2426.7,2425.9,10.19325215]
[1750518343775,0.82404,2426.6,2426.5,3.2078]
[1750518345786,6.663,2426.9,2426.5,3.2078]
[1750518345983,0.82404,2426.6,2426.5,4.03186]
[1750518346681,0.82404,2426.6,2426.5,4.03187]
[1750518347277,0.82402,2426.7,2426.6,0.82403]
[1750518347487,0.82404,2426.6,2426.5,4.03185]
[1750518347978,1.2,2427.0,2426.5,3.2078]
[1750518348178,5.26729,2427.4,2426.9,4.03172]
[1750518348179,3.2078,2427.4,2426.9,4.03172]
[1750518348386,3.2078,2427.4,2427.0,7.48589]
[1750518348578,0.82387,2427.1,2427.0,7.48589]
[1750518349083,0.82387,2427.1,2427.0,6.662]
[1750518349886,0.82384,2427.2,2427.1,0.82386]
[1750518350389,2.05922,2427.7,2427.2,0.82382]
[1750518350587,0.82373,2427.5,2427.4,3.2078]
[1750518352285,0.82373,2427.5,2427.4,9.8678]
[1750518352589,0.82373,2427.5,2427.4,3.2078]
[1750518352787,0.82383,2427.2,2427.1,3.2078]
[1750518352997,0.82383,2427.2,2427.1,9.8678]
[1750518353192,0.82383,2427.2,2427.1,3.2078]
[1750518353393,2.05913,2427.8,2427.1,10.69165]
[1750518353394,2.05921,2427.7,2427.1,10.69165]
[1750518353694,2.05925,2427.6,2427.2,3.2078]
[1750518353995,0.8238,2427.3,2427.2,3.2078]
[1750518358992,2.05959,2427.2,2426.8,3.2078]
[1750518359291,2.05959,2427.2,2426.8,4.03177]
[1750518359492,0.82383,2427.2,2427.1,3.2078]
[1750518359894,0.82394,2426.9,2426.8,3.2078]
[1750518364401,0.89241599,2426.9,2426.8,3.2078]
[1750518365601,2.06001,2426.8,2426.5,3.2078]
[1750518365803,0.82404,2426.6,2426.5,3.2078]
[1750518370698,0.82414,2426.3,2426.2,3.2078]
[1750518374611,0.82424,2426.0,2425.9,3.2078]
[1750518375510,0.82419,2426.2,2426.1,0.82419]
[1750518376110,0.82421,2426.1,2426.0,0.82422]
[1750518376313,0.82424,2426.0,2425.9,4.03206]
[1750518379609,0.82424,2426.0,2425.9,4.69916]
[1750518380110,2.06001,2426.8,2425.9,6.45415626]
[1750518380410,2.70668,2426.9,2426.4,2.57925626]
[1750518380609,0.82404,2426.6,2426.5,1.3578]
[1750518380912,0.82402,2426.7,2426.5,2.18187]
[1750518381105,0.82402,2426.7,2426.6,0.82404]
[1750518381314,0.82396,2426.9,2426.6,5.78705626]
[1750518381515,0.82392,2427.0,2426.9,0.82393]
[1750518381713,0.82389,2427.1,2426.9,0.82394]
[1750518382012,0.82387,2427.1,2427.0,1.491]
[1750518382400,0.824,2426.7,2426.6,3.2078]
[1750518382600,2.05953,2427.3,2426.6,3.2078]
[1750518382803,0.82394,2426.9,2426.8,0.82395]
[1750518383616,0.82394,2426.9,2426.8,1.48495]
[1750518384007,0.82389,2427.1,2427.0,0.82389]
[1750518384204,0.82383,2427.3,2427.1,0.82386]
[1750518384410,0.82383,2427.3,2427.2,0.661]
[1750518387315,0.82383,2427.3,2427.2,3.8688]
[1750518390721,2.0596,2427.2,2426.9,3.2078]
[1750518390925,0.8239,2427.0,2426.9,3.2078]
[1750518394139,0.82382,2427.3,2426.9,3.2078]
[1750518394320,0.82382,2427.3,2427.2,3.2078]
[1750518394625,0.82379,2427.4,2427.3,0.82379]
[1750518394826,0.82376,2427.5,2427.4,0.82376]
[1750518395016,2.0341,2427.9,2427.3,0.694]
[1750518395212,0.82366,2427.7,2427.6,3.2078]
[1750518396525,0.82373,2427.5,2427.4,9.8638]
[1750518397124,0.82373,2427.5,2427.4,3.2078]
[1750518397927,0.82373,2427.5,2427.4,4.03157]
[1750518398228,2.72406,2427.9,2427.4,3.2078]
[1750518398428,0.8237,2427.6,2427.5,0.6905]
[1750518400025,0.82373,2427.5,2427.4,3.2078]
[1750518410033,0.89220599,2427.5,2427.4,3.2078]
[1750518426136,0.82377,2427.4,2427.3,3.27611464]
[1750518426443,0.82377,2427.4,2427.1,3.2078]
[1750518426444,0.82383,2427.2,2427.1,7.18661464]
[1750518426638,0.82383,2427.2,2427.1,3.9105]
[1750518437747,0.82383,2427.2,2427.1,0.7027]
[1750518438045,0.82383,2427.2,2427.1,3.9105]
[1750518439843,2.57777816,2427.2,2426.8,6.48391464]
[1750518440145,0.824,2426.7,2426.6,0.6969]
[1750518442445,0.824,2426.7,2426.6,2.0384]
[1750518442641,0.824,2426.7,2426.6,0.6969]
[1750518447150,0.82398,2426.8,2426.7,0.82398]
[1750518447349,0.82397,2426.8,2426.7,2.57777816]
[1750518447744,0.82397,2426.8,2426.7,3.88007816]
[1750518448050,0.82397,2426.8,2426.7,4.70407816]
[1750518450152,0.82396,2426.9,2426.8,0.82395]
[1750518450456,0.82396,2426.9,2426.8,5.42775]
[1750518451149,2.12812599,2427.2,2426.8,5.42775]
[1750518451150,0.06847599,2427.2,2427.0,0.82388]
[1750518451357,0.89230599,2427.2,2427.1,7.87357816]
[1750518452454,0.06847599,2427.2,2427.1,8.69744816]
[1750518452755,0.82378,2427.4,2427.3,0.82378]
[1750518453658,0.82378,2427.4,2427.3,3.40155816]
[1750518454352,0.82375,2427.5,2427.4,0.82376]
[1750518454550,0.82375,2427.5,2427.4,4.595]
[1750518457454,0.82372,2427.6,2427.5,0.82373]
[1750518457661,0.6591,2428.0,2427.5,3.85807816]
[1750518457855,0.8236,2427.9,2427.8,3.2078]
[1750518459264,2.1728,2427.9,2427.8,3.2078]
[1750518462367,0.82366,2427.7,2427.6,0.6525]
[1750518462553,3.40821,2427.9,2427.4,5.42555]
[1750518462554,0.8237,2427.6,2427.5,0.7089]
[1750518462756,0.82373,2427.5,2427.4,3.2078]
[1750518462957,1.49153,2427.5,2427.4,3.2078]
[1750518465068,2.84933,2427.5,2427.4,3.2078]
[1750518466969,0.82383,2427.2,2427.1,3.2078]
[1750518467170,0.82383,2427.2,2427.1,4.03167]
[1750518467562,0.82382,2427.3,2427.2,0.82382]
[1750518467762,2.05908,2427.8,2427.1,7.11357816]
[1750518467963,0.8237,2427.6,2427.5,3.2078]
[1750518469164,0.8237,2427.6,2427.5,4.03153]
[1750518469360,0.8237,2427.6,2427.5,5.35953]
[1750518469669,0.8237,2427.6,2427.5,3.2078]
[1750518474874,0.8237,2427.6,2427.5,4.03153]
[1750518475077,0.82369,2427.7,2427.6,0.82369]
[1750518475378,0.82365,2427.8,2427.7,0.82365]
[1750518475581,0.82368,2427.7,2427.6,0.82367]
[1750518475765,0.82368,2427.7,2427.6,2.52649898]
[1750518476585,0.7005,2428.1,2427.6,1.70282898]
[1750518476876,0.82356,2428.0,2427.9,3.2078]
[1750518479284,0.82363,2427.8,2427.7,0.6678]
[1750518484282,0.89210599,2427.8,2427.7,1.49146]
[1750518485081,0.89210599,2427.8,2427.7,2.79416]
[1750518485480,0.89210599,2427.8,2427.7,1.9705]
[1750518485881,0.89210599,2427.8,2427.7,0.6678]
[1750518487385,0.82366,2427.7,2427.6,3.2078]
[1750518487576,1.52256,2427.7,2427.6,3.2078]
[1750518490185,0.8237,2427.6,2427.5,0.649]
[1750518492587,0.8237,2427.6,2427.5,1.47273]
[1750518493287,0.8237,2427.6,2427.5,0.649]
[1750518493987,0.82368,2427.7,2427.5,0.649]
[1750518494185,0.82368,2427.7,2427.6,4.03148]
[1750518494995,0.82366,2427.7,2427.6,3.2078]
[1750518496495,2.13546,2427.7,2427.6,3.2078]
[1750518496896,2.13546,2427.7,2427.3,3.2078]
[1750518496897,0.82377,2427.4,2427.3,3.2078]
[1750518497987,2.13557,2427.4,2427.3,3.2078]
[1750518498195,0.82377,2427.4,2427.3,3.2078]
[1750518501504,0.82377,2427.4,2427.3,4.0316]
[1750518501800,0.82372,2427.6,2427.5,0.82371]
[1750518501995,0.89214599,2427.7,2427.6,0.8237]
[1750518502195,0.06847599,2427.7,2427.6,4.0315]
[1750518503291,0.06847599,2427.7,2427.6,5.3179]
[1750518503594,0.7082,2428.0,2427.6,5.3179]
[1750518503595,0.82359,2428.0,2427.9,0.8236]
[1750518503796,0.8236,2427.9,2427.8,0.82361]
[1750518503996,0.82359,2428.0,2427.7,1.2864]
[1750518504196,0.82354,2428.1,2427.7,1.2864]
[1750518504395,3.2078,2428.2,2428.0,0.82356]
[1750518504596,3.2078,2428.2,2428.1,0.6778]
[1750518505098,4.03129,2428.2,2428.1,0.6778]
[1750518505397,0.82349,2428.2,2428.1,3.8856]
[1750518505998,0.82356,2428.0,2427.9,0.6849]
[1750518506591,3.98937816,2428.2,2427.8,3.2078]
[1750518506790,2.57777816,2428.2,2427.9,0.82358]
[1750518507391,0.82359,2428.0,2427.8,4.03141]
[1750518507897,0.82359,2428.0,2427.9,0.8236]
[1750518508800,0.82359,2428.0,2427.8,4.03141]
[1750518508999,0.8236,2427.9,2427.8,4.03141]
[1750518509395,0.8237,2427.6,2427.5,3.2078]
[1750518509604,0.82397,2426.8,2426.7,3.27611464]
[1750518509899,2.05934,2427.5,2426.5,9.67292249]
[1750518509900,0.82404,2426.6,2426.5,3.2078]
[1750518510098,0.82411,2426.4,2426.3,3.27611464]
[1750518510293,2.57777816,2426.4,2426.1,6.48391464]
[1750518510494,0.82417,2426.3,2426.1,6.48391464]
[1750518510690,3.2078,2426.7,2426.1,3.2078]
[1750518510899,1.3326,2426.8,2426.2,2.57777816]
[1750518511099,3.86247816,2426.7,2426.1,4.497]
[1750518511301,0.82417,2426.2,2426.1,9.8408]
[1750518511604,0.82416,2426.3,2426.1,9.8408]
[1750518512201,0.82417,2426.2,2426.1,9.8408]
[1750518512391,0.82416,2426.3,2426.1,10.665]
[1750518512592,0.82417,2426.2,2426.1,9.8408]
[1750518513194,0.82417,2426.2,2426.1,3.2078]
[1750518513397,0.82428,2425.9,2425.8,9.8418]
[1750518513899,0.82428,2425.9,2425.8,3.2078]
[1750518515800,1.4107,2426.2,2425.8,4.03209]
[1750518516005,0.82426,2426.0,2425.8,4.03209]
[1750518516206,0.82428,2425.9,2425.8,4.6284]
[1750518516703,0.82428,2425.9,2425.8,3.2078]
[1750518518499,4.67377816,2426.2,2425.8,3.2078]
[1750518518697,0.82425,2426.0,2425.8,4.03209]
[1750518519005,0.82428,2425.9,2425.8,3.2078]
[1750518521109,2.19668,2425.9,2425.8,3.2078]
[1750518522507,3.4331,2425.9,2425.4,5.36344]
[1750518522700,3.4331,2425.9,2425.4,1.3312]
[1750518522701,0.82441,2425.5,2425.4,1.3312]
[1750518522905,4.63858816,2425.8,2425.1,3.5398313]
[1750518522906,0.82448,2425.3,2425.2,7.4605]
[1750518523093,0.82451,2425.2,2425.1,3.2078]
[1750518523498,0.82455,2425.1,2425.0,1.53398]
[1750518523694,0.82455,2425.1,2425.0,4.74178]
[1750518524003,0.82455,2425.1,2425.0,3.9172]
[1750518524500,0.82455,2425.1,2425.0,4.74178]
[1750518525108,0.82455,2425.1,2425.0,3.9172]
[1750518525507,0.82455,2425.1,2425.0,4.74178]
[1750518525710,0.82452,2425.2,2425.0,4.74176]
[1750518526104,0.82455,2425.1,2425.0,4.74176]
[1750518527004,0.82455,2425.1,2425.0,1.53396]
[1750518527710,0.82455,2425.1,2425.0,0.7094]
[1750518528213,0.82455,2425.1,2425.0,1.53398]
[1750518528414,2.57777816,2425.4,2424.8,10.19086418]
[1750518528614,0.82454,2425.2,2425.0,4.03236]
[1750518529014,0.82455,2425.1,2425.0,3.2078]
[1750518530011,0.82462,2424.9,2424.8,0.82464]
[1750518531306,0.82461,2425.0,2424.9,0.82461]
[1750518531505,0.89304599,2425.1,2425.0,0.82458]
[1750518531906,0.89304599,2425.1,2424.9,0.82459]
[1750518531907,0.06847599,2425.1,2424.9,0.82459]
[1750518532108,0.8246,2425.0,2424.9,0.82459]
[1750518532416,0.89304599,2425.1,2425.0,0.82458]
[1750518532912,0.06847599,2425.1,2425.0,0.82458]
[1750518533113,0.06847599,2425.1,2425.0,4.03238]
[1750518534513,0.89302599,2425.1,2425.0,4.03238]
[1750518535116,0.06847599,2425.1,2425.0,4.03238]
[1750518535305,0.89302599,2425.1,2425.0,4.03238]
[1750518537412,0.06847599,2425.1,2425.0,4.03238]
[1750518537613,0.06847599,2425.1,2425.0,6.61015816]
[1750518538319,7.45738,2425.6,2425.5,0.8244]
[1750518538515,7.45738,2425.6,2425.5,4.0322]
[1750518538917,7.45738,2425.6,2425.5,3.2078]
[1750518539316,7.45738,2425.6,2425.5,4.03221]